Cogmind - Beta 10.1 @@@ ROGUE MODE // 2020.09.25 @ 21:02:37 Player: Turbografx16 Result: Self-destructed Performance ------------- Evolutions (1) 500 Regions Visited (2) 400 Robots Destroyed (7) 35 Value Destroyed (233) 233 Prototype IDs (0) 0 Alien Tech Used (0) 0 Bonus (0) 0 TOTAL SCORE: 1168 Bonus ------- None Cogmind --------- Core Integrity 372/400 Matter 279/300 Energy 250/250 System Corruption 0% Temperature Cool (0) Movement Treading (160) Location -9/Materials Parts ------- > --- POWER (1) -------- Ion Engine > --- PROPULSION (3) --- Light Treads Light Treads > --- UTILITY (3) ------ Medium Storage Unit Large Storage Unit > --- WEAPON (2) ------- Assault Rifle Assault Rifle > --- INVENTORY (14) --- Ion Engine Light Armor Plating Assault Rifle Light Assault Rifle Peak State ------------ > --- POWER ------------ Light Ion Engine > --- PROPULSION ------- Aluminum Leg Aluminum Leg > --- UTILITY ---------- Small Storage Unit Large Storage Unit > --- WEAPON ----------- EM Pulse Gun Assault Rifle > --- INVENTORY -------- Light Ion Engine Light Treads Light Treads Light Assault Rifle [Rating: 7] Favorites ----------- Power Light Ion Engine Engine Light Ion Engine Propulsion Light Treads Treads Light Treads Leg Aluminum Leg Utility Large Storage Unit Storage Large Storage Unit Weapon Assault Rifle Energy Gun EM Pulse Gun Ballistic Gun Assault Rifle Build | -11 -10 -9 ------- Run | Scr Mat Mat Slots Evolved 2 | . . 2 Power . | . . . Propulsion 1 | . . 1 Utility 1 | . . 1 Weapon . | . . . Parts Attached 7 | . 5 2 Power 1 | . . 1 Engine 1 | . . 1 Core . | . . . Reactor . | . . . Propulsion 2 | . 2 . Treads 2 | . 2 . Leg . | . . . Wheel . | . . . Hover . | . . . Flight . | . . . Utility 2 | . 2 . Device . | . . . Storage 2 | . 2 . Processor . | . . . Hackware . | . . . Protection . | . . . Artifact . | . . . Weapon 2 | . 1 1 Energy Gun . | . . . Energy Cannon . | . . . Ballistic Gun 2 | . 1 1 Ballistic Cannon . | . . . Launcher . | . . . Special Weapon . | . . . Impact Weapon . | . . . Slashing Weapon . | . . . Piercing Weapon . | . . . Special Melee Weapon . | . . . Unidentified Prototypes . | . . . Parts Lost 1 | . . 1 Power . | . . . Propulsion . | . . . Utility . | . . . Weapon 1 | . . 1 Highest Loss Streak 1 | . . 1 Average Slot Usage (%) 94 | . 98 75 Engine 13 | . 14 11 Treads 22 | . 22 22 Leg 4 | . 5 . Storage 25 | . 26 22 Energy Gun 12 | . 14 5 Ballistic Gun 14 | . 14 15 Naked Turns . | . . . Heaviest Build 33 | 11 31 33 Greatest Support 40 | 20 40 40 Greatest Overweight (x) 1 | . 1 . Average Overweight (x) . | . . . Largest Inventory Capacity 14 | 6 14 14 Average Capacity 13 | 6 12 14 Most Carried 5 | 5 5 5 Average Carried 4 | 5 4 4 Final Capacity 14 | 6 14 14 Final Carried 5 | 4 5 4 Class Distribution -------------------- 100% | Mutant Dominant Class ---------------- Mutant | -10/Materials Mutant | -9/Materials Resources | -11 -10 -9 ----------- Run | Scr Mat Mat Matter Collected 346 | 200 69 77 Remotely . | . . . Salvage Created 279 | . 202 77 Parts 14 | . 9 5 Haulers Intercepted . | . . . Recyclers Shooed . | . . . Parts Field Recycled . | . . . Retrieved Matter . | . . . Parts Self-Destructed . | . . . Prevented . | . . . Kills | -11 -10 -9 ------- Run | Scr Mat Mat Combat Hostiles Destroyed 6 | . 4 2 Guns 5 | . 3 2 AOE 1 | . 1 . Classes Destroyed 2 | . 2 . Watcher 1 | . 1 . Grunt 6 | . 4 2 Best Kill Streak 2 | . 2 2 Combat Bots Only 2 | . 2 2 Max Kills in Single Turn 1 | . 1 1 Gunslinging . | . . . Exploded 1 | . 1 . Melee . | . . . Uniques/NPCs Destroyed . | . . . Combat | -11 -10 -9 -------- Run | Scr Mat Mat Damage Taken 432 | . 262 170 Core 28 | . . 28 Absorbed by Shields . | . . . Core Remaining (%) 100 | 100 100 . Volleys Fired 27 | . 15 12 Largest 2 | . 2 2 Hottest 60 | . 60 60 Shots Fired 52 | . 30 22 Gun 52 | . 30 22 Cannon . | . . . Launcher . | . . . Special . | . . . Kinetic 34 | . 15 19 Thermal . | . . . Explosive . | . . . Electromagnetic 18 | . 15 3 Robot Hit Streak 6 | . 6 6 Robot Miss Streak 3 | . 2 3 Penetration Max . | . . . Secondary Targets 1 | . 1 . Max Gunslinging Chain 1 | . 1 . Shots Hit Robots 37 | . 22 15 Core Hits 13 | . 9 4 Critical Hits . | . . . Critical Kills . | . . . Critical Parts Destroyed . | . . . Melee Attacks . | . . . Impact . | . . . Slashing . | . . . Piercing . | . . . Sneak Attacks . | . . . Combat Hostiles . | . . . Follow-up Attacks . | . . . Damage Inflicted 586 | . 395 191 Guns 490 | . 299 191 Cannons . | . . . Explosions 96 | . 96 . Melee . | . . . Ramming . | . . . Kinetic 290 | . 127 163 Thermal 96 | . 96 . Explosive . | . . . Electromagnetic 200 | . 172 28 Impact . | . . . Slashing . | . . . Piercing . | . . . Highest Corruption . | . . . Average Corruption . | . . . Corruption Purged . | . . . Overload Shots . | . . . Overflow Damage . | . . . Projectiles . | . . . Explosions . | . . . Melee . | . . . Knockbacks . | . . . Impact . | . . . Kinetic . | . . . Secondary . | . . . Self-Inflicted Damage 42 | . 42 . Shots 1 | . 1 . Rammed . | . . . Targets Rammed . | . . . Kicked . | . . . Crushed . | . . . Highest Temperature 87 | . 87 3 Average Temperature 38 | . 40 3 Received Heat Transfer 180 | . 126 54 Siege Activations . | . . . Robots Corrupted . | . . . Combat Hostiles . | . . . Parts Fried 1 | . 1 . Impact Corruptions . | . . . Robots Melted . | . . . Combat Hostiles . | . . . Parts Melted . | . . . Heat Transferred 50 | . 50 . Parts Sabotaged . | . . . Parts Stolen . | . . . Parts Stripped . | . . . Power Chain Reactions 1 | . 1 . Missiles Intercepted . | . . . Alert | -11 -10 -9 ------- Run | Scr Mat Mat Peak Influence 122 | . 122 66 Initial . | . . . Average 75 | . 85 35 Maximum Alert Level . | . . . Low Security (%) 100 | 100 100 100 Level 1 . | . . . Level 2 . | . . . Level 3 . | . . . Level 4 . | . . . Level 5 . | . . . High Security . | . . . Max Security . | . . . Squads Dispatched 2 | . 1 1 Investigation 1 | . . 1 Extermination . | . . . Reinforcement 1 | . 1 . Assault . | . . . Garrison . | . . . Intercept . | . . . Construction Impeded . | . . . Haulers Reinforced . | . . . Stealth | -11 -10 -9 --------- Run | Scr Mat Mat Distress Signals . | . . . Communications Jammed . | . . . Distress Signals . | . . . Times Spotted 13 | . 7 6 Peak Tracking Total 4 | . 4 4 Tactical Retreats 1 | . 1 . Traps | -11 -10 -9 ------- Run | Scr Mat Mat Traps Triggered . | . . . Indirectly . | . . . Trap Hack Attempts . | . . . Triggered . | . . . Disarmed . | . . . Reprogrammed . | . . . Reused . | . . . Traps Extracted . | . . . Installed . | . . . Triggered . | . . . Machines | -11 -10 -9 ---------- Run | Scr Mat Mat Machines Disabled . | . . . Max in Single Turn . | . . . Machines Sabotaged . | . . . Garrisons Compromised . | . . . Overloaded Fab Kills . | . . . Fab Network Shutdowns . | . . . Hacking | -11 -10 -9 --------- Run | Scr Mat Mat Machines Accessed 5 | . 3 2 Terminals 4 | . 2 2 Fabricators . | . . . Repair Stations . | . . . Recycling Units 1 | . 1 . Scanalyzers . | . . . Garrison Access . | . . . Total Hacks 10 | . 5 5 Successful 6 | . 4 2 Failed 4 | . 1 3 Catastrophic 1 | . . 1 Database Lockouts . | . . . Manual 9 | . 4 5 Terminals 9 | . 4 5 Fabricators . | . . . Repair Stations . | . . . Recycling Units 1 | . 1 . Scanalyzers . | . . . Garrison Access . | . . . Terminal Hacks 1 | . 1 . Locate Traps 1 | . 1 . Fabricator Hacks . | . . . Repair Station Hacks . | . . . Recycling Unit Hacks 1 | . 1 . Report Inventory 1 | . 1 . Scanalyzer . | . . . Garrison Access Hacks . | . . . Unauthorized Hacks 4 | . 2 2 Terminals 4 | . 2 2 Botnet 4 | . 2 2 Fabricators . | . . . Repair Stations . | . . . Recycling Units . | . . . Scanalyzers . | . . . Garrison Access . | . . . Data Cores Recovered . | . . . Used . | . . . Hacking Detections 4 | . 2 2 Full Trace Events 1 | . . 1 Feedback Events . | . . . Feedback Blocked . | . . . Robot Schematics Acquired . | . . . Robots Built . | . . . Matter . | . . . Time . | . . . Total Robot Build Rating . | . . . Part Schematics Acquired . | . . . Parts Built . | . . . Matter . | . . . Time . | . . . Total Part Build Rating . | . . . Parts Repaired . | . . . Time . | . . . Parts Recycled . | . . . Recycled Matter . | . . . Retrieved Matter . | . . . Retrieved Components . | . . . Parts Scanalyzed . | . . . Part Schematics Acquired . | . . . Parts Damaged . | . . . Bothacking | -11 -10 -9 ------------ Run | Scr Mat Mat Used RIF Installer . | . . . Robots Hacked . | . . . Non-combat . | . . . Combat . | . . . Robot Hacks Applied . | . . . Relay Couplers Released . | . . . Robots Rewired . | . . . Allies Hacked . | . . . Hacks Repelled . | . . . Allies | -11 -10 -9 -------- Run | Scr Mat Mat Total Allies . | . . . Largest Group . | . . . Highest-Rated Group . | . . . Highest-Rated Ally . | . . . Total Orders . | . . . Ally Attacks . | . . . Total Damage . | . . . Kills . | . . . Allies Corrupted . | . . . Allies Melted . | . . . Intel | -11 -10 -9 ------- Run | Scr Mat Mat Robot Analysis Total . | . . . Derelict Logs Recovered . | . . . Drone Launches . | . . . Drone Recoveries . | . . . Exploration | -11 -10 -9 ------------- Run | Scr Mat Mat Turns Passed 538 | 1 437 100 Spaces Moved 284 | 1 245 38 Core . | . . . Treads 234 | . 196 38 Legs 50 | 1 49 . Wheels . | . . . Hover . | . . . Flight . | . . . Fastest Speed 120 | 120 120 160 Average Speed 153 | 120 152 160 Slowest Speed 160 | 120 160 160 Overloaded Moves . | . . . Propulsion Burnouts . | . . . Robots Hopped . | . . . Cave-ins Triggered . | . . . Exploration Rate (%) 19 | 2 51 6 Regions Visited 2 Branch Regions . Pre-discovered Areas . | . . . Known Exits Taken . | . . . Unknown Exits Taken 2 | 1 1 . Scrap Searched . | . . . Spaces Dug . | . . . Terrain Destroyed 3 | . 3 . Melee . | . . . Projectile . | . . . AOE 3 | . 3 . Terrain Rammed . | . . . Walls Destroyed . | . . . Machines Disabled . | . . . Actions | -11 -10 -9 --------- Run | Scr Mat Mat Total 334 | 2 277 55 Wait 6 | . 6 . Move 282 | . 244 38 Hop . | . . . Pick Up 4 | . 3 1 Fast Attach 1 | . 1 . Attach 1 | . . 1 Detach . | . . . Swap 5 | . 4 1 Drop 8 | 2 4 2 Fire 27 | . 15 12 Melee . | . . . Ram . | . . . Kick . | . . . Crush . | . . . Escape Stasis . | . . . Rewire . | . . . Trap . | . . . Miscellaneous . | . . . Route ------- -11/Scrapyard -10/Materials (discovered 2 exits: *Mat x2) -9/Materials (discovered 1 exit: [*Min]) History --------- Turn | Location | Event 2 | -11/Scrapyard | Discovered new exit (range 0) 2 | -11/Scrapyard | Entered Materials 280 | -10/Materials | Discovered new exit (range 5) 301 | -10/Materials | Build established: Mutant 402 | -10/Materials | Discovered new exit (range 16) 439 | -10/Materials | Entered another Materials area 439 | -9/Materials | Evolved 2 slots: Propulsion x1, Utility x1 447 | -9/Materials | Discovered new exit (range 15) 539 | -9/Materials | Self-destructed Last Messages --------------- 00462_ Current location identified: Materials >>Trojan(Botnet) Trojan loaded successfully. Testing... Terminal linked with 0 systems. Awaiting botnet instructions. 00462_ ALERT: Suspicious activity at Terminal M010. Dispatching Investigation squad. 00467_ Connecting with Terminal... >>Trojan(Botnet) Trojan loaded successfully. Testing... Terminal linked with 1 system. Awaiting botnet instructions. 00485_ EM Pulse Gun destroyed. 00489_ G-34 Mercenary destroyed. 00513_ Acquired 36 matter. 00515_ Acquired 41 matter. 00521_ Dropped Lgt. Ion Engine. 00524_ Acquired Ion Engine. Map ----- +----------------------------------------------------+ | | | | | | | | | | | | | | | | | | | | | | | | | | | | | ?????????????????????????????????????????????????? | | ?????????????????????????????????????????????????? | | ?????????????????????????????????????????????????? | | ????????????????################?????????????????? | | ????????????????# ??????????????????? | | ????????????????# #####+#####??????????????? | | ????????????????# # #??????????????? | | ??????????########### # """ "" #??????????????? | | ????????### # # """ T" #??????????????? | | ????????#"" """ #= # """ "" #??????????????? | | ????????#"" """"" = += s ss #??????????????? | | ????????#"T """"" =#** #@ s ![ #??????????????? | | ????????#"" """"" # # ![ #??????????????? | | ????????#"" """ [# # #??????????????? | | ????????### # ###########??????????????? | | ??????????# # #????????????????????????? | | ??????????##""T""#### #????????????????????????? | | ???????????#"""""#??# #????????????????????????? | | ???????????#######??# #????????????????????????? | | ????????????????????# #????????????????????????? | | ????????????????????# #????????????????????????? | | ???????????????????? ????????????????????????? | | ???????????????????? ????????????????????????? | | ???????????????????? < ????????????????????????? | | ???????????????????? ????????????????????????? | | ???????????????????? #???????????????????????? | | ????????????????????? ?????????????????????????? | | ?????????????????????????????????????????????????? | | ?????????????????????????????????????????????????? | | ?????????????????????????????????????????????????? | | ?????????????????????????????????????????????????? | | ?????????????????????????????????????????????????? | | ?????????????????????????????????????????????????? | | ?????????????????????????????????????????????????? | | ?????????????????????????????????????????????????? | | ?????????????????????????????????????????????????? | +----------------------------------------------------+ Best States ------------- Heat Dissipation 28 Energy Generation 10 Energy Capacity 250 Matter Stores 300 Matter Capacity 300 Sight Range 16 Terrain Scan Density 10 Evasion (%) 40 Recoil Reduction 2 Item Schematics ----------------- None Robot Schematics ------------------ None Fabricated ------------ Nothing Alien Tech Used ----------------- None Achievements -------------- None Challenges ------------ None Game ------ Seed HardenedCryofiberFirepult Manual? 0 Play Time 00:06:07 Cumulative 27.4 hours Start 2020.09.25 @ 20:57:23 End 2020.09.25 @ 21:02:37 Sessions 1 Manual Loads 0 Difficulty Rogue Special Mode None Game No. 52 Rogue 15 Adventurer 37 Explorer 0 Win Type - Total 1 Types 0/0/0/1/0/0/0/0/0 Lore% 23 Gallery% 35 Achievement% 40 Wizard Run 0 Options --------- ASCII 0 Keyboard 0 Movement Mouse Keybinds 0 Fullscreen 1 Font 20/SmallcapsGlow Map View 66x50 Tactical HUD 1 Map Filters NONE Filters NONE Steam 1 RUN: 721738cf-607b-492a-9abe-d9920afd3f79